[Event "16th EWICC 2015"]
[Site "Kutaisi"]
[Date "2015.06.03"]
[Round "11"]
[White "Zhukova, Natalia"]
[Black "Gunina, Valentina"]
[Result "1-0"]
[ECO "D11"]
[WhiteElo "2456"]
[BlackElo "2535"]
[Annotator "Robot 11"]
[PlyCount "81"]
[EventDate "2015.??.??"]
[EventCountry "GEO"]
[TimeControl "900+10"]

1. c4 {[%emt 0:00:02]} c6 {[%emt 0:00:03]} 2. d4 {[%emt 0:00:02]} d5 {[%emt 0:
00:02]} 3. Nf3 {[%emt 0:00:02]} Nf6 {[%emt 0:00:02]} 4. Qc2 {[%emt 0:00:02]}
dxc4 {[%emt 0:00:10]} 5. g3 {[%emt 0:00:02]} Bg4 {[%emt 0:01:34]} 6. Nbd2 {
[%emt 0:00:22]} e6 {[%emt 0:00:08]} 7. Bg2 {[%emt 0:00:08]} Be7 {[%emt 0:00:17]
} 8. Qxc4 {[%emt 0:00:36]} O-O {[%emt 0:00:03]} 9. O-O {[%emt 0:00:06]} Nbd7 {
[%emt 0:00:17]} 10. Nb3 {[%emt 0:01:25]} Rc8 {[%emt 0:00:26]} 11. Nfd2 {[%emt
0:01:40]} a5 {[%emt 0:01:28]} 12. a4 {[%emt 0:00:27]} Bb4 {[%emt 0:00:18]} 13.
e4 {[%emt 0:00:33]} e5 {[%emt 0:00:33]} 14. Qc2 {[%emt 0:00:40]} exd4 {[%emt 0:
01:21]} 15. Nxd4 {[%emt 0:00:02]} Ne5 {[%emt 0:00:01]} 16. N2f3 {[%emt 0:00:51]
} Nxf3+ {[%emt 0:02:39]} 17. Nxf3 {[%emt 0:00:02]} Re8 {[%emt 0:00:12]} 18. Nh4
{[%emt 0:02:25]} Qe7 {[%emt 0:01:17]} 19. h3 {[%emt 0:00:28]} Bd7 {[%emt 0:00:
31]} 20. Rd1 {[%emt 0:00:55]} Rcd8 {[%emt 0:00:36]} 21. Be3 {[%emt 0:00:15]}
Bc8 {[%emt 0:01:46]} 22. Bb6 {[%emt 0:00:32]} Rxd1+ {[%emt 0:00:05]} 23. Rxd1 {
[%emt 0:00:00]} c5 {[%emt 0:01:02]} 24. Qd3 {[%emt 0:01:18]} Qe6 {[%emt 0:01:
07]} 25. Bc7 {[%emt 0:01:18]} Qc6 {[%emt 0:00:05]} 26. e5 {[%emt 0:00:09]} Qxc7
{[%emt 0:00:02]} 27. exf6 {[%emt 0:00:01]} g6 {[%emt 0:00:24]} 28. Bd5 {[%emt
0:00:21]} Kf8 {[%emt 0:02:16]} 29. Nf3 {[%emt 0:00:59]} h6 {[%emt 0:00:38]} 30.
Qc4 {[%emt 0:00:10]} Kg8 {[%emt 0:00:18]} 31. Qh4 {[%emt 0:00:16]} Qb6 {[%emt
0:00:09]} 32. Qxh6 {[%emt 0:01:01]} Qxf6 {[%emt 0:00:02]} 33. Ng5 {[%emt 0:00:
01]} Re7 {[%emt 0:00:23]} 34. Qh7+ {[%emt 0:01:50]} Kf8 {[%emt 0:00:01]} 35.
Bxf7 {[%emt 0:00:06]} Rxf7 {[%emt 0:00:19]} 36. Nxf7 {[%emt 0:00:51]} Be6 {
[%emt 0:00:10]} 37. Nd6 {[%emt 0:00:38]} c4 {[%emt 0:00:10]} 38. Nxb7 {[%emt 0:
00:06]} Bg8 {[%emt 0:00:07]} 39. Rd8+ {[%emt 0:00:12]} Qxd8 {[%emt 0:00:04]}
40. Qh6+ {[%emt 0:00:01]} Ke8 {[%emt 0:00:04]} 41. Nxd8 {[%emt 0:00:02]} 1-0